[Event "FIDE WCCC Open-10 2024"]
[Site "Montesilvano"]
[Date "2024.11.22"]
[Round "7.19"]
[White "Mulay, Vivan Prakash"]
[Black "Mrozowski, Nikodem"]
[Result "1-0"]
[Annotator "NA RC"]
[ECO "A25"]
[WhiteElo "1823"]
[BlackElo "1874"]
[PlyCount "93"]
[EventDate "2024.11.18"]
[EventType "swiss"]
[EventCountry "ITA"]
[SourceTitle "playchess.com"]
[Source "ChessBase"]
[SourceQuality "1"]
[TimeControl "5400+30"]

1. c4 {[%emt 0:00:01]} e5 {[%emt 0:00:05]} 2. Nc3 {[%emt 0:00:09]} Nc6 {[%emt 0:00:06]} 3. g3 {[%emt 0:00:03]} f5 {[%emt 0:00:06]} 4. Bg2 {[%emt 0:00:04]} Nf6 $14 {[%emt 0:00:14]} 5. d3 {[%emt 0:00:22]} Bb4 {[%emt 0:00:05]} 6. Bd2 {[%emt 0:00:40]} O-O {[%emt 0:00:31]} 7. a3 {[%emt 0:00:38]} Bxc3 {[%emt 0:00:08]} 8. Bxc3 {[%emt 0:00:13]} d6 {[%emt 0:00:07]} 9. Nf3 {[%emt 0:01:17]} Kh8 {[%emt 0:00:51]} 10. O-O {[%emt 0:02:17]} Qe8 {[%emt 0:01:17]} 11. b4 {[%emt 0:02:21]} f4 {[%emt 0:02:58]} 12. b5 {[%emt 0:06:08]} Ne7 {[%emt 0:02:49]} 13. Qb3 {[%emt 0:15:54]} Qh5 {[%emt 0:05:19]} 14. c5 {[%emt 0:17:41]} fxg3 {[%emt 0:03:38]} 15. fxg3 {[%emt 0:01:59]} Ng4 {[%emt 0:11:37]} 16. cxd6 {[%emt 0:02:36]} cxd6 {[%emt 0:00:30]} 17. Nh4 {[%emt 0:12:55]} Bd7 {[%emt 0:02:26]} 18. Bd2 {[%emt 0:14:51]} Nf5 {[%emt 0:04:36]} 19. Qb4 {[%emt 0:07:41]} g5 {[%emt 0:03:22]} 20. h3 {[%emt 0:03:43]} Nxg3 {[%emt 0:02:12]} 21. Rxf8+ {[%emt 0:00:37]} Rxf8 {[%emt 0:00:05]} 22. Qxd6 {[%emt 0:00:15]} Nxe2+ {[%emt 0:01:35]} 23. Kh1 {[%emt 0:00:03]} Rf7 {[%emt 0:00:58]} 24. Re1 {[%emt 0:04:16]} Nf2+ {[%emt 0:01:08]} 25. Kh2 {[%emt 0:00:05]} gxh4 {[%emt 0:00:23]} 26. Bh6 {[%emt 0:00:50]} Be8 {[%emt 0:27:26]} 27. Rxe2 {[%emt 0:00:55]} Nxd3 {[%emt 0:03:24]} 28. Rc2 {[%emt 0:02:02]} Qf5 {[%emt 0:00:56]} 29. Qd8 {[%emt 0:02:32]} Qd7 {[%emt 0:01:51]} 30. Rc8 {[%emt 0:00:22]} Qxd8 {[%emt 0:06:18]} 31. Rxd8 {[%emt 0:00:01]} Re7 {[%emt 0:00:08]} 32. Bg5 {[%emt 0:00:14]} Re6 {[%emt 0:00:14]} 33. Bd5 {[%emt 0:00:06]} Ne1 {[%emt 0:01:15]} 34. Bxe6 {[%emt 0:00:12]} Nf3+ {[%emt 0:00:02]} 35. Kg2 {[%emt 0:00:11]} Nxg5 {[%emt 0:00:03]} 36. Rxe8+ {[%emt 0:00:02]} Kg7 {[%emt 0:00:08]} 37. Bd5 {[%emt 0:00:05]} Kf6 {[%emt 0:00:08]} 38. Bxb7 {[%emt 0:00:03]} Ne6 {[%emt 0:00:11]} 39. Ra8 {[%emt 0:00:24]} Nc7 {[%emt 0:00:09]} 40. Rxa7 {[%emt 0:00:13]} Nxb5 {[%emt 0:00:04]} 41. Ra6+ {[%emt 0:00:09]} Kf5 {[%emt 0:00:04]} 42. a4 {[%emt 0:00:09]} Nd4 {[%emt 0:00:03]} 43. Rh6 {[%emt 0:00:06]} e4 {[%emt 0:00:03]} 44. Rxh4 {[%emt 0:07:05]} Ne6 {[%emt 0:00:52]} 45. Bxe4+ {[%emt 0:00:00]} Kg5 {[%emt 0:00:04]} 46. Rxh7 {[%emt 0:00:00]} Nc5 {[%emt 0:00:04]} 47. Bc6 {[%emt 0:00:00]} 1-0

[Event "FIDE WCCC Open-10 2024"]
[Site "Montesilvano"]
[Date "2024.11.22"]
[Round "7.20"]
[White "Zabelin, Platon"]
[Black "Vedrickas, Vytis"]
[Result "1-0"]
[Annotator "NA RC"]
[ECO "D85"]
[WhiteElo "1870"]
[BlackElo "1642"]
[PlyCount "105"]
[EventDate "2024.11.18"]
[EventType "swiss"]
[EventCountry "ITA"]
[SourceTitle "playchess.com"]
[Source "ChessBase"]
[SourceQuality "1"]
[TimeControl "5400+30"]

1. d4 {[%emt 0:00:06]} Nf6 {[%emt 0:00:36]} 2. c4 {[%emt 0:00:13]} g6 {[%emt 0:00:26]} 3. Nc3 {[%emt 0:00:24]} d5 {[%emt 0:00:20]} 4. cxd5 {[%emt 0:00:34]} Nxd5 {[%emt 0:00:16]} 5. e4 {[%emt 0:00:42]} Nxc3 {[%emt 0:02:04]} 6. bxc3 {[%emt 0:00:06]} Bg7 {[%emt 0:00:10]} 7. Be3 {[%emt 0:00:39]} c5 {[%emt 0:00:17]} 8. Nf3 {[%emt 0:00:28]} Qa5 {[%emt 0:00:23]} 9. Qd2 {[%emt 0:00:40]} O-O {[%emt 0:00:18]} 10. Rc1 {[%emt 0:01:32]} Rd8 {[%emt 0:00:22]} 11. Bc4 {[%emt 0:09:38]} cxd4 {[%emt 0:07:14]} 12. cxd4 {[%emt 0:00:44]} Qxd2+ {[%emt 0:00:26]} 13. Kxd2 {[%emt 0:00:47]} Nc6 {[%emt 0:02:36]} 14. d5 {[%emt 0:06:19]} Bg4 {[%emt 0:02:21]} 15. h3 {[%emt 0:06:25]} Bxf3 {[%emt 0:03:41]} 16. gxf3 {[%emt 0:00:01]} Nd4 {[%emt 0:00:54]} 17. f4 $11 {[%emt 0:07:01]} e6 {[%emt 0:07:55]} 18. Bxd4 {[%emt 0:02:50]} Bxd4 {[%emt 0:00:12]} 19. Ke2 {[%emt 0:02:24]} exd5 {[%emt 0:01:07]} 20. Bxd5 {[%emt 0:00:08]} Rd7 {[%emt 0:00:29]} 21. Rc4 {[%emt 0:03:28]} Bb6 {[%emt 0:00:56]} 22. Rhc1 {[%emt 0:01:05]} Rad8 {[%emt 0:01:38]} 23. Rc8 {[%emt 0:03:26]} Kg7 {[%emt 0:02:55]} 24. Rxd8 {[%emt 0:06:04]} Bxd8 {[%emt 0:01:00]} 25. Rc8 {[%emt 0:00:11]} Be7 {[%emt 0:06:12]} 26. Bb3 {[%emt 0:14:46]} b6 {[%emt 0:05:37]} 27. e5 {[%emt 0:01:45]} Bc5 {[%emt 0:01:01]} 28. Rc6 {[%emt 0:08:54]} Re7 {[%emt 0:06:52]} 29. Kf3 {[%emt 0:01:39]} a5 {[%emt 0:01:41]} 30. Ke4 {[%emt 0:05:55]} Bxf2 {[%emt 0:08:00]} 31. f5 {[%emt 0:00:05]} gxf5+ {[%emt 0:00:12]} 32. Kxf5 {[%emt 0:00:14]} Bc5 {[%emt 0:02:32]} 33. h4 {[%emt 0:03:07]} Rd7 {[%emt 0:04:18]} 34. h5 {[%emt 0:02:06]} h6 {[%emt 0:02:13]} 35. e6 {[%emt 0:01:14]} fxe6+ {[%emt 0:00:52]} 36. Bxe6 {[%emt 0:00:04]} Rd2 {[%emt 0:04:59]} 37. Rc7+ {[%emt 0:00:23]} Kf8 {[%emt 0:00:36]} 38. Rf7+ {[%emt 0:03:53]} Ke8 {[%emt 0:00:10]} 39. Rh7 {[%emt 0:00:18]} Rf2+ {[%emt 0:02:03]} 40. Ke5 {[%emt 0:01:37]} Bf8 {[%emt 0:03:03]} 41. Rb7 {[%emt 0:03:38]} Re2+ {[%emt 0:02:41]} 42. Kf6 {[%emt 0:00:56]} Rf2+ {[%emt 0:00:55]} 43. Bf5 {[%emt 0:00:17]} Rd2 {[%emt 0:00:21]} 44. Bg6+ {[%emt 0:00:32]} Kd8 {[%emt 0:00:36]} 45. Rb8+ {[%emt 0:00:02]} Kc7 {[%emt 0:00:38]} 46. Rxf8 {[%emt 0:00:06]} Rxa2 {[%emt 0:00:15]} 47. Kg7 {[%emt 0:00:39]} Rh2 {[%emt 0:00:45]} 48. Kxh6 {[%emt 0:00:06]} a4 {[%emt 0:00:25]} 49. Kg7 {[%emt 0:00:48]} Kb7 {[%emt 0:01:15]} 50. h6 {[%emt 0:00:12]} a3 {[%emt 0:00:08]} 51. Be4+ {[%emt 0:00:05]} Kc7 {[%emt 0:00:34]} 52. h7 {[%emt 0:00:20]} b5 {[%emt 0:01:20]} 53. h8=Q {[%emt 0:00:07]} 1-0

[Event "FIDE WCCC Open-10 2024"]
[Site "Montesilvano"]
[Date "2024.11.22"]
[Round "7.20"]
[White "Button-Rabl, Jiban"]
[Black "Bartash, Saveli"]
[Result "1/2-1/2"]
[Annotator "NA RC"]
[ECO "B55"]
[WhiteElo "1435"]
[BlackElo "1661"]
[PlyCount "171"]
[EventDate "2024.11.18"]
[EventType "swiss"]
[EventCountry "ITA"]
[SourceTitle "playchess.com"]
[Source "ChessBase"]
[SourceQuality "1"]
[TimeControl "5400+30"]

1. e4 {[%emt 0:00:01]} c5 {[%emt 0:00:14]} 2. Nf3 {[%emt 0:00:09]} d6 {[%emt 0:00:16]} 3. d4 {[%emt 0:00:09]} cxd4 {[%emt 0:00:12]} 4. Nxd4 {[%emt 0:00:18]} Nf6 {[%emt 0:00:18]} 5. f3 {[%emt 0:00:15]} a6 {[%emt 0:00:27]} 6. c4 {[%emt 0:00:08]} e5 {[%emt 0:00:11]} 7. Nb3 {[%emt 0:00:28]} Be6 {[%emt 0:00:49]} 8. Nc3 {[%emt 0:00:50]} Nbd7 {[%emt 0:01:08]} 9. Nd5 {[%emt 0:00:29]} Bxd5 {[%emt 0:02:11]} 10. cxd5 {[%emt 0:00:43]} Be7 {[%emt 1:29:44]} 11. Be3 {[%emt 0:01:20]} O-O {[%emt 0:00:00]} 12. Rc1 {[%emt 0:01:31]} Rc8 {[%emt 0:00:00]} 13. Be2 {[%emt 0:01:15]} b5 {[%emt 0:00:00]} 14. Qd2 {[%emt 0:01:28]} Nb6 {[%emt 0:00:00]} 15. Na5 {[%emt 0:02:13]} Na8 {[%emt 0:00:00]} 16. Nc6 {[%emt 0:01:02]} Qd7 {[%emt 0:00:00]} 17. O-O {[%emt 0:00:26]} Qb7 {[%emt 0:00:00]} 18. Rc2 {[%emt 0:00:40]} Rfe8 {[%emt 0:00:00]} 19. Rfc1 {[%emt 1:26:35]} Bf8 {[%emt 0:00:00]} 20. Bg5 {[%emt 0:00:00]} Nd7 {[%emt 0:00:00]} 21. Qa5 {[%emt 0:00:00]} Nab6 {[%emt 0:00:00]} 22. g4 {[%emt 0:00:00]} h6 {[%emt 0:00:00]} 23. Bh4 {[%emt 0:00:00]} Nc5 {[%emt 0:00:00]} 24. Qd2 {[%emt 0:00:00]} Nbd7 {[%emt 0:00:00]} 25. b4 {[%emt 0:00:00]} Na4 {[%emt 0:00:00]} 26. g5 {[%emt 0:00:00]} h5 {[%emt 0:00:00]} 27. f4 {[%emt 0:00:00]} exf4 {[%emt 0:00:00]} 28. Qxf4 {[%emt 0:00:00]} Ne5 {[%emt 0:00:00]} 29. Rf1 {[%emt 0:00:00]} Ng6 {[%emt 0:00:00]} 30. Qf2 {[%emt 0:00:00]} Qb6 {[%emt 0:00:00]} 31. Qxb6 {[%emt 0:00:00]} Nxb6 {[%emt 0:00:00]} 32. Bf2 {[%emt 0:00:00]} Nd7 {[%emt 0:00:00]} 33. Bxh5 {[%emt 0:07:00]} Nde5 {[%emt 0:00:00]} 34. Bxg6 {[%emt 0:00:00]} Nxg6 {[%emt 0:00:00]} 35. Re1 {[%emt 0:00:00]} Nf4 {[%emt 0:00:00]} 36. Re3 {[%emt 0:00:00]} g6 {[%emt 0:00:00]} 37. Kf1 {[%emt 0:00:00]} Kh7 {[%emt 0:00:23]} 38. Rcc3 {[%emt 0:00:00]} Bg7 {[%emt 0:01:27]} 39. Ra3 {[%emt 0:00:00]} Ra8 {[%emt 0:02:10]} 40. Bg3 {[%emt 0:00:00]} Nh5 {[%emt 0:05:31]} 41. Bxd6 {[%emt 0:00:00]} Bb2 {[%emt 0:00:24]} 42. Rab3 {[%emt 0:00:00]} Bc1 {[%emt 0:00:07]} 43. Rf3 {[%emt 0:00:00]} Rxe4 {[%emt 0:01:36]} 44. Rxf7+ {[%emt 0:00:00]} Kg8 {[%emt 0:00:13]} 45. Re7 {[%emt 0:00:00]} Rf8+ {[%emt 0:01:09]} 46. Kg2 {[%emt 0:00:00]} Rg4+ {[%emt 0:01:40]} 47. Bg3 {[%emt 0:00:00]} Nf4+ {[%emt 0:01:23]} 48. Kf3 {[%emt 0:00:00]} Rxg5 {[%emt 0:00:53]} 49. Bxf4 {[%emt 0:00:00]} Rxf4+ {[%emt 0:00:50]} 50. Ke2 {[%emt 0:00:00]} Rxd5 {[%emt 0:01:33]} 51. Rd3 {[%emt 0:00:00]} Rxd3 {[%emt 0:00:28]} 52. Kxd3 {[%emt 0:00:00]} Rf2 {[%emt 0:01:13]} 53. Re2 {[%emt 0:00:00]} Rf6 {[%emt 0:00:00]} 54. Ne7+ {[%emt 0:00:00]} Kf7 {[%emt 0:00:00]} 55. Kd4 {[%emt 0:00:00]} Bg5 {[%emt 0:00:50]} 56. Nd5 {[%emt 0:00:00]} Rc6 {[%emt 0:00:15]} 57. Rf2+ {[%emt 0:00:00]} Kg7 {[%emt 0:00:17]} 58. Rf3 {[%emt 0:00:00]} Rc2 {[%emt 0:00:26]} 59. Ra3 {[%emt 0:00:00]} Rxh2 {[%emt 0:00:38]} 60. Rxa6 {[%emt 0:00:00]} Bd2 {[%emt 0:00:22]} 61. Kc5 {[%emt 0:00:00]} Rh5 {[%emt 0:00:23]} 62. Rd6 {[%emt 0:00:00]} g5 {[%emt 0:01:02]} 63. Kxb5 {[%emt 0:00:00]} g4 {[%emt 0:00:04]} 64. Kc4 {[%emt 0:00:00]} g3 {[%emt 0:00:46]} 65. Ne7 {[%emt 0:00:00]} Bf4 {[%emt 0:00:48]} 66. Rd1 {[%emt 0:00:00]} g2 {[%emt 0:00:22]} 67. Rg1 {[%emt 0:00:00]} Rg5 {[%emt 0:00:24]} 68. Nf5+ {[%emt 0:00:00]} Kf6 {[%emt 0:00:11]} 69. Nh4 {[%emt 0:00:00]} Rg4 {[%emt 0:00:14]} 70. Rxg2 {[%emt 0:00:00]} Rxh4 {[%emt 0:00:04]} 71. Rf2 {[%emt 0:00:00]} Ke6 {[%emt 0:00:14]} 72. Re2+ {[%emt 0:00:00]} Kd6 {[%emt 0:01:26]} 73. Re4 {[%emt 0:00:00]} Bg3 {[%emt 0:00:10]} 74. Rxh4 {[%emt 0:00:00]} Bxh4 {[%emt 0:00:04]} 75. Kb5 {[%emt 0:00:00]} Kc7 {[%emt 0:00:07]} 76. Ka6 {[%emt 0:00:00]} Kb8 {[%emt 0:00:12]} 77. a4 {[%emt 0:00:00]} Be7 {[%emt 0:00:07]} 78. b5 {[%emt 0:00:00]} Bc5 {[%emt 0:00:07]} 79. a5 {[%emt 0:00:00]} Bd4 {[%emt 0:00:20]} 80. b6 {[%emt 0:00:00]} Be3 {[%emt 0:00:17]} 81. Kb5 {[%emt 0:00:00]} Kb7 {[%emt 0:00:11]} 82. a6+ {[%emt 0:00:00]} Ka8 {[%emt 0:00:08]} 83. Kc6 {[%emt 0:00:00]} Kb8 {[%emt 0:00:29]} 84. a7+ {[%emt 0:00:00]} Ka8 {[%emt 0:00:15]} 85. Kc7 {[%emt 0:00:00]} Bxb6+ {[%emt 0:00:06]} 86. Kxb6 {[%emt 0:00:00]} 1/2-1/2

[Event "FIDE WCCC Open-10 2024"]
[Site "Montesilvano"]
[Date "2024.11.22"]
[Round "7.21"]
[White "Ramesan, Raunak Amit"]
[Black "Deepak Ambattu, Rithvik"]
[Result "1-0"]
[Annotator "NA RC"]
[ECO "B99"]
[WhiteElo "1802"]
[BlackElo "2063"]
[PlyCount "79"]
[EventDate "2024.11.18"]
[EventType "swiss"]
[EventCountry "ITA"]
[SourceTitle "playchess.com"]
[Source "ChessBase"]
[SourceQuality "1"]
[TimeControl "5400+30"]

1. e4 {[%emt 0:00:05]} c5 {[%emt 0:00:11]} 2. Nf3 {[%emt 0:00:02]} d6 {[%emt 0:00:06]} 3. d4 {[%emt 0:00:03]} cxd4 {[%emt 0:00:06]} 4. Nxd4 {[%emt 0:00:03]} Nf6 {[%emt 0:00:21]} 5. Nc3 {[%emt 0:00:03]} a6 $11 {[%emt 0:00:05]} 6. Bg5 {[%emt 0:00:03]} e6 {[%emt 0:00:06]} 7. f4 {[%emt 0:00:04]} Be7 {[%emt 0:00:21]} 8. Qf3 {[%emt 0:00:18]} Qc7 {[%emt 0:00:04]} 9. O-O-O {[%emt 0:00:46]} Nbd7 {[%emt 0:00:33]} 10. g4 {[%emt 0:02:03]} b5 {[%emt 0:01:06]} 11. Bxf6 {[%emt 0:03:46]} Nxf6 {[%emt 0:00:07]} 12. g5 {[%emt 0:00:11]} Nd7 {[%emt 0:00:07]} 13. f5 {[%emt 0:05:14]} Bxg5+ {[%emt 0:00:08]} 14. Kb1 {[%emt 0:00:04]} Ne5 {[%emt 0:01:00]} 15. Qh5 {[%emt 0:00:58]} h6 {[%emt 0:00:45]} 16. Nxe6 {[%emt 0:01:44]} Bxe6 {[%emt 0:00:16]} 17. fxe6 {[%emt 0:00:05]} g6 {[%emt 0:00:26]} 18. exf7+ {[%emt 0:00:09]} Kxf7 {[%emt 0:00:14]} 19. Qe2 {[%emt 0:02:47]} Qd8 {[%emt 0:00:45]} 20. Qf2+ {[%emt 0:02:09]} Kg7 {[%emt 0:22:55]} 21. Qd4 {[%emt 0:05:17]} Be7 {[%emt 0:09:06]} 22. Bh3 {[%emt 0:11:47]} Rf8 {[%emt 0:22:28]} 23. Nd5 {[%emt 0:04:39]} Bf6 {[%emt 0:10:12]} 24. Nf4 {[%emt 0:05:08]} Re8 {[%emt 0:06:33]} 25. Rhg1 {[%emt 0:07:25]} Kh7 {[%emt 0:04:57]} 26. Qd5 {[%emt 0:04:11]} Qe7 {[%emt 0:04:08]} 27. Nxg6 {[%emt 0:02:02]} Nxg6 {[%emt 0:00:18]} 28. Bf5 {[%emt 0:00:04]} Kh8 {[%emt 0:04:59]} 29. Rxg6 {[%emt 0:01:14]} Qf8 {[%emt 0:00:53]} 30. Rdg1 {[%emt 0:03:49]} Ra7 {[%emt 0:02:26]} 31. Be6 {[%emt 0:01:01]} Bg7 {[%emt 0:00:57]} 32. Qd3 {[%emt 0:07:03]} Qf4 {[%emt 0:02:05]} 33. Qd5 {[%emt 0:09:15]} Rc7 {[%emt 0:03:08]} 34. Qh5 {[%emt 0:04:20]} Rf8 {[%emt 0:01:25]} 35. Bf5 {[%emt 0:01:32]} Qd2 {[%emt 0:04:01]} 36. R6g2 {[%emt 0:01:20]} Qd4 {[%emt 0:00:37]} 37. Rxg7 {[%emt 0:00:57]} Rxg7 {[%emt 0:00:08]} 38. Qxh6+ {[%emt 0:00:06]} Kg8 {[%emt 0:00:03]} 39. Be6+ {[%emt 0:00:38]} Rff7 {[%emt 0:00:05]} 40. Rxg7+ {[%emt 0:00:18]} 1-0

[Event "FIDE WCCC Open-10 2024"]
[Site "Montesilvano"]
[Date "2024.11.22"]
[Round "7.22"]
[White "Blekh, Erik"]
[Black "Annapureddy, Rheyansh Reddy"]
[Result "0-1"]
[Annotator "NA RC"]
[ECO "E60"]
[WhiteElo "1790"]
[BlackElo "2122"]
[PlyCount "58"]
[EventDate "2024.11.18"]
[EventType "swiss"]
[EventCountry "ITA"]
[SourceTitle "playchess.com"]
[Source "ChessBase"]
[SourceQuality "1"]
[TimeControl "5400+30"]

1. Nf3 {[%emt 0:00:05]} Nf6 {[%emt 0:00:24]} 2. g3 {[%emt 0:00:18]} g6 {[%emt 0:00:07]} 3. b3 {[%emt 0:00:25]} Bg7 {[%emt 0:00:11]} 4. Bb2 {[%emt 0:00:12]} O-O {[%emt 0:00:06]} 5. Bg2 {[%emt 0:00:08]} c5 {[%emt 0:00:18]} 6. c4 {[%emt 0:01:06]} d6 {[%emt 0:00:13]} 7. d4 {[%emt 0:01:01]} d5 {[%emt 0:00:58]} 8. Nbd2 {[%emt 0:01:05]} dxc4 {[%emt 0:02:09]} 9. Nxc4 {[%emt 0:01:00]} Be6 {[%emt 0:03:15]} 10. Ncd2 {[%emt 0:03:05]} Nc6 {[%emt 0:02:28]} 11. dxc5 {[%emt 0:04:21]} Qa5 {[%emt 0:02:16]} 12. O-O {[%emt 0:04:57]} Rfd8 $14 {[%emt 0:04:09]} ({Better is} 12... Qxc5 $11 13. Rc1 Qb5) 13. Qc1 {[%emt 0:06:14]} Rac8 {[%emt 0:02:37]} 14. Bc3 {[%emt 0:03:13]} Qxc5 {[%emt 0:00:43]} 15. Qb2 {[%emt 0:01:08]} b5 {[%emt 0:01:09]} 16. b4 {[%emt 0:07:40]} Qh5 {[%emt 0:02:18]} 17. h4 {[%emt 0:04:06]} h6 {[%emt 0:04:19]} 18. a4 {[%emt 0:06:23]} a5 {[%emt 0:03:08]} 19. Nd4 {[%emt 0:12:59]} axb4 {[%emt 0:13:38]} 20. Nxc6 {[%emt 0:02:26]} bxc3 {[%emt 0:00:17]} 21. Qxb5 {[%emt 0:02:31]} Rxc6 {[%emt 0:04:29]} 22. Qxc6 {[%emt 0:01:52]} cxd2 {[%emt 0:00:33]} 23. a5 {[%emt 0:06:56]} Nd5 {[%emt 0:03:42]} 24. a6 {[%emt 0:07:03]} Bxa1 {[%emt 0:05:49]} 25. a7 {[%emt 0:00:55]} Bd4 {[%emt 0:02:28]} 26. a8=Q {[%emt 0:02:05]} Rxa8 {[%emt 0:01:11]} 27. Qxa8+ {[%emt 0:00:07]} Kh7 {[%emt 0:00:21]} 28. Qa4 {[%emt 0:02:06]} Nc3 {[%emt 0:00:27]} 29. Qc2 {[%emt 0:00:43]} Qxe2 {[%emt 0:00:43]} 0-1

[Event "FIDE WCCC Open-10 2024"]
[Site "Montesilvano"]
[Date "2024.11.22"]
[Round "7.23"]
[White "Liu, Liam"]
[Black "Ten Dam, Bram"]
[Result "1-0"]
[Annotator "NA RC"]
[ECO "B22"]
[WhiteElo "1783"]
[BlackElo "2012"]
[PlyCount "93"]
[EventDate "2024.11.18"]
[EventType "swiss"]
[EventCountry "ITA"]
[SourceTitle "playchess.com"]
[Source "ChessBase"]
[SourceQuality "1"]
[TimeControl "5400+30"]

1. e4 {[%emt 0:00:14]} c5 {[%emt 0:00:15]} 2. c3 {[%emt 0:00:09]} Nf6 {[%emt 0:00:05]} 3. e5 {[%emt 0:00:09]} Nd5 {[%emt 0:00:07]} 4. d4 {[%emt 0:00:11]} cxd4 {[%emt 0:00:28]} 5. cxd4 {[%emt 0:00:12]} d6 {[%emt 0:00:53]} 6. Bc4 {[%emt 0:00:09]} Nb6 {[%emt 0:00:10]} 7. Bb3 {[%emt 0:00:04]} dxe5 {[%emt 0:02:33]} 8. Qh5 {[%emt 0:00:34]} e6 {[%emt 0:00:10]} 9. dxe5 {[%emt 0:00:08]} Nc6 {[%emt 0:00:35]} 10. Nc3 {[%emt 0:00:56]} Qd3 {[%emt 0:16:59]} 11. Bf4 {[%emt 1:33:14]} Bb4 {[%emt 0:05:30]} 12. Nge2 {[%emt 0:00:00]} Nd5 {[%emt 0:22:09]} 13. Bxd5 {[%emt 0:00:00]} Qxd5 {[%emt 0:03:38]} 14. O-O {[%emt 0:00:00]} Qd3 {[%emt 0:03:12]} 15. a3 {[%emt 0:00:00]} Be7 {[%emt 0:01:57]} 16. Rfd1 {[%emt 0:00:00]} Qg6 {[%emt 0:03:00]} 17. Qh3 {[%emt 0:00:00]} a6 {[%emt 0:03:43]} 18. Rd3 {[%emt 0:00:00]} h5 {[%emt 0:07:15]} 19. Rad1 {[%emt 0:00:00]} b5 {[%emt 0:03:05]} 20. Qf3 {[%emt 0:00:00]} Bb7 {[%emt 0:12:04]} 21. Rd7 {[%emt 0:00:00]} Rc8 {[%emt 0:04:59]} 22. Rxb7 {[%emt 0:00:00]} O-O {[%emt 0:00:42]} 23. Rbd7 {[%emt 0:00:00]} Bc5 {[%emt 0:00:41]} 24. Qe4 {[%emt 0:00:00]} f5 {[%emt 0:01:35]} 25. Qf3 {[%emt 0:00:00]} h4 {[%emt 0:01:43]} 26. Qh3 {[%emt 0:00:00]} Qh5 {[%emt 0:01:09]} 27. Qf3 {[%emt 0:00:00]} Qe8 {[%emt 0:00:45]} 28. R7d3 {[%emt 0:00:00]} Be7 {[%emt 0:01:33]} 29. h3 {[%emt 0:00:00]} g5 {[%emt 0:00:29]} 30. Bh2 {[%emt 0:00:00]} Bc5 {[%emt 0:00:35]} 31. b4 {[%emt 0:00:00]} Ba7 {[%emt 0:00:42]} 32. Rd7 {[%emt 0:00:00]} Bb8 {[%emt 0:01:25]} 33. Qe3 {[%emt 0:00:00]} Qg6 {[%emt 0:00:46]} 34. f4 {[%emt 0:00:00]} g4 {[%emt 0:01:00]} 35. Kh1 {[%emt 0:00:00]} Kh8 {[%emt 0:00:41]} 36. hxg4 {[%emt 0:00:00]} fxg4 {[%emt 0:00:56]} 37. Qe4 {[%emt 0:00:19]} Qh6 {[%emt 0:00:31]} 38. Rb7 {[%emt 0:03:18]} Nd8 {[%emt 0:00:46]} 39. Re7 {[%emt 0:02:07]} Nc6 {[%emt 0:00:09]} 40. Red7 {[%emt 0:00:54]} g3 {[%emt 0:00:18]} 41. Bg1 {[%emt 0:00:11]} Rg8 {[%emt 0:00:46]} 42. Rf7 {[%emt 0:02:41]} Nd8 {[%emt 0:00:43]} 43. Rf6 {[%emt 0:00:13]} Qh5 {[%emt 0:00:14]} 44. Qf3 {[%emt 0:00:53]} Qh7 {[%emt 0:00:30]} 45. Ne4 {[%emt 0:00:36]} Rc7 {[%emt 0:00:59]} 46. Ng5 {[%emt 0:00:31]} Rxg5 {[%emt 0:00:27]} 47. fxg5 {[%emt 0:00:10]} 1-0

[Event "FIDE WCCC Open-10 2024"]
[Site "Montesilvano"]
[Date "2024.11.22"]
[Round "7.23"]
[White "Vydra, David"]
[Black "McFadden, Oisin"]
[Result "1-0"]
[Annotator "NA RC"]
[ECO "B32"]
[WhiteElo "1615"]
[BlackElo "1464"]
[PlyCount "111"]
[EventDate "2024.11.18"]
[EventType "swiss"]
[EventCountry "ITA"]
[SourceTitle "playchess.com"]
[Source "ChessBase"]
[SourceQuality "1"]
[TimeControl "5400+30"]

1. e4 {[%emt 0:00:18]} c5 {[%emt 0:01:42]} 2. Nf3 {[%emt 0:00:50]} Nc6 {[%emt 0:02:52]} 3. d4 {[%emt 0:00:23]} cxd4 {[%emt 0:01:19]} 4. Nxd4 {[%emt 0:01:54]} e5 {[%emt 1:26:37]} 5. Nb5 {[%emt 0:00:44]} d6 {[%emt 0:00:00]} 6. N1c3 {[%emt 0:01:40]} a6 {[%emt 0:00:00]} 7. Na3 {[%emt 0:01:24]} b5 {[%emt 0:00:00]} 8. Nd5 {[%emt 0:02:33]} Nge7 {[%emt 0:00:00]} 9. Bg5 {[%emt 0:04:12]} h6 {[%emt 0:02:30]} 10. Bxe7 {[%emt 0:03:35]} Nxe7 {[%emt 0:00:00]} 11. Be2 {[%emt 0:09:20]} Nxd5 {[%emt 0:00:00]} 12. exd5 {[%emt 0:01:17]} Bf5 {[%emt 0:00:00]} 13. O-O {[%emt 0:04:46]} Qg5 {[%emt 0:00:00]} 14. c3 {[%emt 0:12:37]} h5 {[%emt 0:00:00]} 15. f4 {[%emt 0:18:58]} exf4 {[%emt 0:00:00]} 16. Qd2 {[%emt 0:02:49]} Be7 {[%emt 0:00:00]} 17. Rae1 {[%emt 0:01:59]} O-O {[%emt 0:00:00]} 18. Bd3 {[%emt 0:12:13]} Bxd3 {[%emt 0:00:00]} 19. Qxd3 {[%emt 0:01:04]} Bf6 {[%emt 0:00:00]} 20. Nc2 {[%emt 0:00:34]} Be5 {[%emt 0:00:00]} 21. Nd4 {[%emt 0:01:16]} Qg6 {[%emt 0:00:00]} 22. Qxg6 {[%emt 0:01:17]} fxg6 {[%emt 0:00:00]} 23. Ne6 {[%emt 0:00:09]} Rf5 {[%emt 0:00:00]} 24. Re4 {[%emt 0:01:37]} g5 {[%emt 0:00:00]} 25. g3 {[%emt 0:01:34]} f3 {[%emt 0:00:00]} 26. g4 {[%emt 0:00:53]} hxg4 {[%emt 0:00:00]} 27. Rxg4 {[%emt 0:00:11]} f2+ {[%emt 0:00:00]} 28. Kg2 {[%emt 0:02:31]} Bf6 {[%emt 0:00:00]} 29. Rxf2 {[%emt 0:00:49]} Rxd5 {[%emt 0:00:00]} 30. Nc7 {[%emt 0:00:12]} b4 {[%emt 0:00:00]} 31. Nxd5 {[%emt 0:00:27]} bxc3 {[%emt 0:00:00]} 32. bxc3 {[%emt 0:00:15]} Rc8 {[%emt 0:00:00]} 33. Rxf6 {[%emt 0:00:20]} gxf6 {[%emt 0:00:00]} 34. Ne7+ {[%emt 0:00:07]} Kf7 {[%emt 0:00:00]} 35. Nxc8 {[%emt 0:00:05]} Ke6 {[%emt 0:00:00]} 36. Ra4 {[%emt 0:00:06]} Kd7 {[%emt 0:00:00]} 37. Nb6+ {[%emt 0:00:15]} Kc6 {[%emt 0:00:00]} 38. Nc4 {[%emt 0:00:14]} Kb5 {[%emt 0:00:00]} 39. Rb4+ {[%emt 0:00:12]} Kc5 {[%emt 0:00:00]} 40. Nxd6 {[%emt 0:01:53]} Kxd6 {[%emt 0:00:00]} 41. Rb6+ {[%emt 0:00:05]} Ke5 {[%emt 0:00:00]} 42. Rxa6 {[%emt 0:00:07]} f5 {[%emt 0:00:00]} 43. a4 {[%emt 0:00:17]} f4 {[%emt 0:00:00]} 44. Rb6 {[%emt 0:00:42]} g4 {[%emt 0:00:00]} 45. Rb4 {[%emt 0:00:39]} Kf5 {[%emt 0:00:00]} 46. a5 {[%emt 0:00:07]} f3+ {[%emt 0:00:00]} 47. Kg3 {[%emt 0:00:28]} f2 {[%emt 0:00:00]} 48. Kxf2 {[%emt 0:00:03]} g3+ {[%emt 0:00:00]} 49. Kxg3 {[%emt 0:00:16]} Ke5 {[%emt 0:00:00]} 50. a6 {[%emt 0:00:06]} Kd5 {[%emt 0:00:00]} 51. a7 {[%emt 0:00:05]} Kc5 {[%emt 0:00:10]} 52. a8=Q {[%emt 0:00:09]} Kd6 {[%emt 0:00:08]} 53. Qa5 {[%emt 0:00:08]} Kc6 {[%emt 0:00:41]} 54. Rb6+ {[%emt 0:00:03]} Kc7 {[%emt 0:00:31]} 55. Qa7+ {[%emt 0:00:01]} Kc8 {[%emt 0:21:30]} 56. Rb8# {[%emt 0:00:30]} 1-0